[Event "Titled Tuesday Blitz June 28 Late 2022"]
[White "Melikhov, Evgeny V."]
[Black "Gokerkan, Cem Kaan"]
[WhiteFideId "4122046"]
[BlackFideId "6336760"]
[WhiteElo "2405"]
[BlackElo "2721"]
[Result "0-1"]
[Round "01"]
[TimeControl "180+1"]
[Date "2022.06.29"]
[WhiteClock "0:00:19"]
[BlackClock "0:00:43"]

1. d4 {[%clk 0:02:57]}  Nf6 {[%clk 0:03:00]} 2. c4 {[%clk 0:02:57]}  g6 {[%clk 0:03:00]} 3. Nc3 {[%clk 0:02:57]}  Bg7 {[%clk 0:03:01]} 4. e4 {[%clk 0:02:57]}  d6 {[%clk 0:03:02]} 5. f3 {[%clk 0:02:57]}  O-O {[%clk 0:03:01]} 6. Be3 {[%clk 0:02:57]}  e5 {[%clk 0:02:55]} 7. d5 {[%clk 0:02:57]}  Nh5 {[%clk 0:02:52]} 8. Qd2 {[%clk 0:02:56]}  a5 {[%clk 0:02:51]} 9. O-O-O {[%clk 0:02:56]}  c6 {[%clk 0:02:51]} 10. dxc6 {[%clk 0:02:40]}  Nxc6 {[%clk 0:02:49]} 11. Qxd6 {[%clk 0:02:39]}  Qe8 {[%clk 0:02:12]} 12. Nd5 {[%clk 0:02:37]}  Nd4 {[%clk 0:01:45]} 13. Nc7 {[%clk 0:02:21]}  Qa4 {[%clk 0:01:45]} 14. Bxd4 {[%clk 0:02:05]}  Bh6+ {[%clk 0:01:45]} 15. Rd2 {[%clk 0:01:56]}  exd4 {[%clk 0:01:46]} 16. Nxa8 {[%clk 0:01:46]}  Qxa2 {[%clk 0:01:29]} 17. Nb6 {[%clk 0:01:28]}  Bxd2+ {[%clk 0:01:21]} 18. Kxd2 {[%clk 0:01:27]}  Qxb2+ {[%clk 0:01:21]} 19. Ke1 {[%clk 0:01:23]}  Qc3+ {[%clk 0:01:15]} 20. Kd1 {[%clk 0:01:04]}  Qb3+ {[%clk 0:01:09]} 21. Ke1 {[%clk 0:01:02]}  Qc3+ {[%clk 0:01:06]} 22. Kd1 {[%clk 0:01:01]}  Be6 {[%clk 0:00:57]} 23. Ne2 {[%clk 0:00:32]}  Qb3+ {[%clk 0:00:55]} 24. Ke1 {[%clk 0:00:29]}  d3 {[%clk 0:00:47]} 25. Nd4 {[%clk 0:00:23]}  Qc3+ {[%clk 0:00:47]} 26. Kf2 {[%clk 0:00:20]}  Qd2+ {[%clk 0:00:44]} 27. Be2 {[%clk 0:00:19]}  dxe2 {[%clk 0:00:43]} 28. Nxe2 {[%clk 0:00:19]}  Qxd6 {[%clk 0:00:43]} 0-1


[Site "https://www.chess.com"]

[Event "Titled Tuesday Blitz June 28 Late 2022"]
[White "Mendonca, Mateus Nakajo"]
[Black "Fajdetic, Hrvoje"]
[WhiteFideId "2110954"]
[BlackFideId "14501945"]
[WhiteElo "2185"]
[BlackElo "2172"]
[Result "1-0"]
[Round "01"]
[TimeControl "180+1"]
[Date "2022.06.29"]
[WhiteClock "0:00:12"]
[BlackClock "0:00:07"]

1. d4 {[%clk 0:02:59]}  Nf6 {[%clk 0:02:58]} 2. c4 {[%clk 0:02:59]}  e5 {[%clk 0:02:58]} 3. dxe5 {[%clk 0:02:59]}  Ng4 {[%clk 0:02:58]} 4. e4 {[%clk 0:02:59]}  Nxe5 {[%clk 0:02:56]} 5. f4 {[%clk 0:02:59]}  Nec6 {[%clk 0:02:55]} 6. Nf3 {[%clk 0:02:59]}  Bb4+ {[%clk 0:02:54]} 7. Bd2 {[%clk 0:02:56]}  Bxd2+ {[%clk 0:02:52]} 8. Qxd2 {[%clk 0:02:50]}  O-O {[%clk 0:02:53]} 9. Bd3 {[%clk 0:02:49]}  d6 {[%clk 0:02:42]} 10. Nc3 {[%clk 0:02:48]}  Nb4 {[%clk 0:02:31]} 11. Bb1 {[%clk 0:02:27]}  a5 {[%clk 0:02:29]} 12. O-O {[%clk 0:02:11]}  Re8 {[%clk 0:02:26]} 13. a3 {[%clk 0:01:57]}  N4a6 {[%clk 0:02:25]} 14. Bc2 {[%clk 0:01:51]}  Nd7 {[%clk 0:02:15]} 15. Rae1 {[%clk 0:01:48]}  Nf8 {[%clk 0:02:12]} 16. Kh1 {[%clk 0:01:45]}  Nc5 {[%clk 0:01:50]} 17. Nd5 {[%clk 0:01:24]}  a4 {[%clk 0:01:34]} 18. f5 {[%clk 0:01:17]}  f6 {[%clk 0:01:24]} 19. g4 {[%clk 0:01:09]}  h6 {[%clk 0:01:10]} 20. h4 {[%clk 0:01:04]}  Ncd7 {[%clk 0:00:59]} 21. Nc3 {[%clk 0:00:45]}  Ne5 {[%clk 0:00:58]} 22. Nxe5 {[%clk 0:00:44]}  dxe5 {[%clk 0:00:51]} 23. Qxd8 {[%clk 0:00:33]}  Rxd8 {[%clk 0:00:52]} 24. Bxa4 {[%clk 0:00:29]}  Rd2 {[%clk 0:00:50]} 25. Rb1 {[%clk 0:00:24]}  Bd7 {[%clk 0:00:40]} 26. Bxd7 {[%clk 0:00:22]}  Nxd7 {[%clk 0:00:41]} 27. Rfd1 {[%clk 0:00:22]}  Rxd1+ {[%clk 0:00:41]} 28. Rxd1 {[%clk 0:00:23]}  Nc5 {[%clk 0:00:41]} 29. Kg2 {[%clk 0:00:22]}  Kf7 {[%clk 0:00:36]} 30. Kf3 {[%clk 0:00:22]}  c6 {[%clk 0:00:35]} 31. Ne2 {[%clk 0:00:18]}  Ke7 {[%clk 0:00:30]} 32. Nc1 {[%clk 0:00:16]}  Na4 {[%clk 0:00:26]} 33. Rd2 {[%clk 0:00:15]}  b5 {[%clk 0:00:22]} 34. cxb5 {[%clk 0:00:15]}  cxb5 {[%clk 0:00:23]} 35. Rc2 {[%clk 0:00:15]}  Rd8 {[%clk 0:00:21]} 36. Ke3 {[%clk 0:00:15]}  Rd1 {[%clk 0:00:20]} 37. Nd3 {[%clk 0:00:14]}  Rh1 {[%clk 0:00:17]} 38. Nf2 {[%clk 0:00:14]}  Rh2 {[%clk 0:00:16]} 39. b3 {[%clk 0:00:13]}  Nb6 {[%clk 0:00:15]} 40. Rc6 {[%clk 0:00:13]}  Nd7 {[%clk 0:00:15]} 41. a4 {[%clk 0:00:13]}  bxa4 {[%clk 0:00:13]} 42. bxa4 {[%clk 0:00:14]}  Rxh4 {[%clk 0:00:13]} 43. a5 {[%clk 0:00:14]}  h5 {[%clk 0:00:12]} 44. a6 {[%clk 0:00:08]}  hxg4 {[%clk 0:00:12]} 45. a7 {[%clk 0:00:09]}  Rh8 {[%clk 0:00:11]} 46. Re6+ {[%clk 0:00:09]}  Kf7 {[%clk 0:00:11]} 47. Ra6 {[%clk 0:00:08]}  Ra8 {[%clk 0:00:10]} 48. Nd3 {[%clk 0:00:08]}  g3 {[%clk 0:00:09]} 49. Nb4 {[%clk 0:00:08]}  Nc5 {[%clk 0:00:08]} 50. Ra5 {[%clk 0:00:07]}  Nb3 {[%clk 0:00:07]} 51. Ra3 {[%clk 0:00:07]}  Nd4 {[%clk 0:00:07]} 52. Nd5 {[%clk 0:00:06]}  Nc6 {[%clk 0:00:05]} 53. Ra6 {[%clk 0:00:03]}  Rxa7 {[%clk 0:00:03]} 54. Rxc6 {[%clk 0:00:03]}  Ra3+ {[%clk 0:00:04]} 55. Ke2 {[%clk 0:00:03]}  g2 {[%clk 0:00:04]} 56. Kf2 {[%clk 0:00:03]}  Ra2+ {[%clk 0:00:04]} 57. Kg1 {[%clk 0:00:04]}  Re2 {[%clk 0:00:05]} 58. Nc3 {[%clk 0:00:04]}  g6 {[%clk 0:00:05]} 59. Nxe2 {[%clk 0:00:04]}  gxf5 {[%clk 0:00:05]} 60. exf5 {[%clk 0:00:05]}  Ke7 {[%clk 0:00:05]} 61. Kxg2 {[%clk 0:00:05]}  Kd7 {[%clk 0:00:05]} 62. Re6 {[%clk 0:00:05]}  e4 {[%clk 0:00:04]} 63. Ng3 {[%clk 0:00:06]}  e3 {[%clk 0:00:04]} 64. Kf1 {[%clk 0:00:07]}  e2+ {[%clk 0:00:04]} 65. Kxe2 {[%clk 0:00:08]}  Kd8 {[%clk 0:00:05]} 66. Ne4 {[%clk 0:00:08]}  Kd7 {[%clk 0:00:05]} 67. Ke3 {[%clk 0:00:09]}  Kd8 {[%clk 0:00:06]} 68. Kd4 {[%clk 0:00:10]}  Kd7 {[%clk 0:00:06]} 69. Kd5 {[%clk 0:00:11]}  Kd8 {[%clk 0:00:07]} 70. Nxf6 {[%clk 0:00:12]} 1-0


[Site "https://www.chess.com"]

[Event "Titled Tuesday Blitz June 28 Late 2022"]
[White "Meunier-Pion, Jean"]
[Black "Abdrlauf, Elham"]
[WhiteFideId "20685327"]
[BlackFideId "1533533"]
[WhiteElo "2124"]
[BlackElo "2403"]
[Result "0-1"]
[Round "01"]
[TimeControl "180+1"]
[Date "2022.06.28"]
[WhiteClock "0:00:02"]
[BlackClock "0:00:10"]

1. e4 {[%clk 0:03:00]}  c6 {[%clk 0:02:59]} 2. d4 {[%clk 0:03:00]}  d5 {[%clk 0:03:00]} 3. e5 {[%clk 0:03:01]}  c5 {[%clk 0:03:00]} 4. dxc5 {[%clk 0:03:01]}  e6 {[%clk 0:03:00]} 5. Be3 {[%clk 0:03:00]}  Nd7 {[%clk 0:03:00]} 6. Nf3 {[%clk 0:02:54]}  Bxc5 {[%clk 0:02:59]} 7. Qd2 {[%clk 0:02:45]}  Ne7 {[%clk 0:02:59]} 8. Bb5 {[%clk 0:02:40]}  Nc6 {[%clk 0:02:57]} 9. O-O {[%clk 0:02:36]}  O-O {[%clk 0:02:56]} 10. Bxc5 {[%clk 0:02:34]}  Nxc5 {[%clk 0:02:57]} 11. Nc3 {[%clk 0:02:34]}  Bd7 {[%clk 0:02:55]} 12. Rfd1 {[%clk 0:02:31]}  Rc8 {[%clk 0:02:53]} 13. Qf4 {[%clk 0:02:31]}  Qb6 {[%clk 0:02:33]} 14. b4 {[%clk 0:02:17]}  Ne4 {[%clk 0:01:43]} 15. Nxe4 {[%clk 0:02:16]}  dxe4 {[%clk 0:01:44]} 16. Qxe4 {[%clk 0:00:59]}  Qxb5 {[%clk 0:01:42]} 17. Rxd7 {[%clk 0:00:58]}  Qxb4 {[%clk 0:01:21]} 18. Qxb4 {[%clk 0:00:27]}  Nxb4 {[%clk 0:01:22]} 19. Rxb7 {[%clk 0:00:28]}  Nxc2 {[%clk 0:01:15]} 20. Rd1 {[%clk 0:00:24]}  a5 {[%clk 0:01:14]} 21. h4 {[%clk 0:00:23]}  Nb4 {[%clk 0:01:13]} 22. a3 {[%clk 0:00:22]}  Nd5 {[%clk 0:01:14]} 23. Ra7 {[%clk 0:00:18]}  Rc5 {[%clk 0:01:12]} 24. Rb1 {[%clk 0:00:18]}  h6 {[%clk 0:01:08]} 25. Rbb7 {[%clk 0:00:18]}  Nf4 {[%clk 0:01:08]} 26. g3 {[%clk 0:00:17]}  Nd3 {[%clk 0:01:07]} 27. a4 {[%clk 0:00:14]}  Nxe5 {[%clk 0:01:06]} 28. Nxe5 {[%clk 0:00:14]}  Rxe5 {[%clk 0:01:07]} 29. Rb5 {[%clk 0:00:15]}  Re1+ {[%clk 0:00:27]} 30. Kg2 {[%clk 0:00:15]}  Rc8 {[%clk 0:00:28]} 31. Raxa5 {[%clk 0:00:03]}  Rc7 {[%clk 0:00:16]} 32. Rb3 {[%clk 0:00:03]}  Ra1 {[%clk 0:00:15]} 33. Ra8+ {[%clk 0:00:03]}  Kh7 {[%clk 0:00:15]} 34. a5 {[%clk 0:00:03]}  g6 {[%clk 0:00:09]} 35. a6 {[%clk 0:00:03]}  Kg7 {[%clk 0:00:10]} 36. Rb7 {[%clk 0:00:03]}  Rxa6 {[%clk 0:00:11]} 37. Rxc7 {[%clk 0:00:03]}  Rxa8 {[%clk 0:00:11]} 38. Rb7 {[%clk 0:00:03]}  Ra4 {[%clk 0:00:11]} 39. Rc7 {[%clk 0:00:04]}  Ra5 {[%clk 0:00:10]} 40. Rb7 {[%clk 0:00:04]}  g5 {[%clk 0:00:11]} 41. Rc7 {[%clk 0:00:05]}  gxh4 {[%clk 0:00:11]} 42. gxh4 {[%clk 0:00:06]}  Ra3 {[%clk 0:00:12]} 43. f3 {[%clk 0:00:06]}  Kg6 {[%clk 0:00:12]} 44. Kg3 {[%clk 0:00:06]}  e5 {[%clk 0:00:12]} 45. Rc6+ {[%clk 0:00:06]}  f6 {[%clk 0:00:13]} 46. h5+ {[%clk 0:00:07]}  Kg5 {[%clk 0:00:13]} 47. Re6 {[%clk 0:00:07]}  Ra1 {[%clk 0:00:07]} 48. Kg2 {[%clk 0:00:07]}  Ra8 {[%clk 0:00:04]} 49. Kh2 {[%clk 0:00:07]}  Rf8 {[%clk 0:00:05]} 50. Re7 {[%clk 0:00:06]}  Kxh5 {[%clk 0:00:04]} 51. Rg7 {[%clk 0:00:06]}  Rb8 {[%clk 0:00:05]} 52. Kg3 {[%clk 0:00:06]}  Rb3 {[%clk 0:00:05]} 53. Kg2 {[%clk 0:00:04]}  Rb4 {[%clk 0:00:05]} 54. Kg3 {[%clk 0:00:03]}  Rf4 {[%clk 0:00:06]} 55. Kg2 {[%clk 0:00:03]}  Rf5 {[%clk 0:00:07]} 56. Kf2 {[%clk 0:00:03]}  Rg5 {[%clk 0:00:07]} 57. Rf7 {[%clk 0:00:04]}  Kg6 {[%clk 0:00:08]} 58. Rf8 {[%clk 0:00:04]}  Rf5 {[%clk 0:00:08]} 59. Rg8+ {[%clk 0:00:04]}  Kf7 {[%clk 0:00:09]} 60. Rh8 {[%clk 0:00:04]}  e4 {[%clk 0:00:09]} 61. Ke2 {[%clk 0:00:02]}  Rxf3 {[%clk 0:00:06]} 62. Rxh6 {[%clk 0:00:02]}  Ke6 {[%clk 0:00:07]} 63. Rh5 {[%clk 0:00:02]}  f5 {[%clk 0:00:07]} 64. Rh8 {[%clk 0:00:03]}  Ra3 {[%clk 0:00:07]} 65. Re8+ {[%clk 0:00:02]}  Kf6 {[%clk 0:00:08]} 66. Rf8+ {[%clk 0:00:02]}  Ke5 {[%clk 0:00:09]} 67. Kf2 {[%clk 0:00:02]}  Ra2+ {[%clk 0:00:08]} 68. Ke3 {[%clk 0:00:02]}  f4+ {[%clk 0:00:09]} 69. Rxf4 {[%clk 0:00:02]}  Ra3+ {[%clk 0:00:10]} 0-1


[Site "https://www.chess.com"]

[Event "Titled Tuesday Blitz June 28 Late 2022"]
[White "Mortazavi, Ali"]
[Black "Terry, Renato"]
[WhiteFideId "401323"]
[BlackFideId "3803457"]
[WhiteElo "2339"]
[BlackElo "2577"]
[Result "0-1"]
[Round "01"]
[TimeControl "180+1"]
[Date "2022.06.28"]
[WhiteClock "0:00:03"]
[BlackClock "0:01:19"]

1. Nf3 {[%clk 0:02:58]}  Nf6 {[%clk 0:03:00]} 2. g3 {[%clk 0:02:59]}  d5 {[%clk 0:02:59]} 3. Bg2 {[%clk 0:03:00]}  c6 {[%clk 0:03:00]} 4. O-O {[%clk 0:03:01]}  Bg4 {[%clk 0:03:00]} 5. d3 {[%clk 0:03:02]}  Nbd7 {[%clk 0:03:01]} 6. c4 {[%clk 0:03:02]}  dxc4 {[%clk 0:03:01]} 7. dxc4 {[%clk 0:03:01]}  e5 {[%clk 0:03:01]} 8. Nc3 {[%clk 0:03:01]}  Be7 {[%clk 0:03:02]} 9. h3 {[%clk 0:02:58]}  Be6 {[%clk 0:03:00]} 10. b3 {[%clk 0:02:55]}  O-O {[%clk 0:02:58]} 11. Qc2 {[%clk 0:02:52]}  h6 {[%clk 0:02:55]} 12. Nh4 {[%clk 0:02:46]}  Re8 {[%clk 0:02:55]} 13. Nf5 {[%clk 0:02:41]}  Bf8 {[%clk 0:02:55]} 14. Rd1 {[%clk 0:02:33]}  Qc7 {[%clk 0:02:55]} 15. Be3 {[%clk 0:02:32]}  a5 {[%clk 0:02:54]} 16. Ne4 {[%clk 0:02:19]}  Nxe4 {[%clk 0:02:53]} 17. Bxe4 {[%clk 0:02:17]}  Nf6 {[%clk 0:02:53]} 18. Bg2 {[%clk 0:02:17]}  a4 {[%clk 0:02:42]} 19. Kh2 {[%clk 0:02:04]}  Qa5 {[%clk 0:02:14]} 20. Rab1 {[%clk 0:01:54]}  axb3 {[%clk 0:02:14]} 21. axb3 {[%clk 0:01:54]}  e4 {[%clk 0:02:11]} 22. Nd6 {[%clk 0:01:44]}  Bxd6 {[%clk 0:02:04]} 23. Rxd6 {[%clk 0:01:45]}  Qh5 {[%clk 0:02:04]} 24. Bb6 {[%clk 0:01:24]}  Bf5 {[%clk 0:01:55]} 25. e3 {[%clk 0:01:12]}  c5 {[%clk 0:01:44]} 26. Qd1 {[%clk 0:01:04]}  Bg4 {[%clk 0:01:42]} 27. Qd2 {[%clk 0:00:58]}  Bf3 {[%clk 0:01:40]} 28. Kg1 {[%clk 0:00:45]}  Kh7 {[%clk 0:01:29]} 29. g4 {[%clk 0:00:29]}  Nxg4 {[%clk 0:01:25]} 30. Bxf3 {[%clk 0:00:23]}  exf3 {[%clk 0:01:24]} 31. Qd3+ {[%clk 0:00:20]}  g6 {[%clk 0:01:23]} 32. Qd5 {[%clk 0:00:15]}  Ne5 {[%clk 0:01:20]} 33. Qe4 {[%clk 0:00:05]}  Qg5+ {[%clk 0:01:19]} 34. Kf1 {[%clk 0:00:05]}  Qg2+ {[%clk 0:01:19]} 35. Ke1 {[%clk 0:00:06]}  Ra2 {[%clk 0:01:19]} 36. Rd2 {[%clk 0:00:03]}  Qg1# {[%clk 0:01:19]} 0-1


[Site "https://www.chess.com"]

[Event "Titled Tuesday Blitz June 28 Late 2022"]
[White "Navarrete Mendez, Gonzalo Alberto"]
[Black "Le Hetet, Nicolas"]
[WhiteFideId "5106850"]
[BlackFideId "634824"]
[WhiteElo "2261"]
[BlackElo "2316"]
[Result "1-0"]
[Round "01"]
[TimeControl "180+1"]
[Date "2022.06.29"]
[WhiteClock "0:02:08"]
[BlackClock "0:00:42"]

1. e4 {[%clk 0:02:57]}  c5 {[%clk 0:02:59]} 2. Nf3 {[%clk 0:02:58]}  Nc6 {[%clk 0:02:58]} 3. Nc3 {[%clk 0:02:58]}  e5 {[%clk 0:02:58]} 4. Bc4 {[%clk 0:02:57]}  Be7 {[%clk 0:02:58]} 5. d3 {[%clk 0:02:57]}  Nf6 {[%clk 0:02:56]} 6. Ng5 {[%clk 0:02:57]}  O-O {[%clk 0:02:54]} 7. h4 {[%clk 0:02:57]}  Nd4 {[%clk 0:02:50]} 8. Nd5 {[%clk 0:02:56]}  d6 {[%clk 0:02:36]} 9. Nxf6+ {[%clk 0:02:50]}  Bxf6 {[%clk 0:02:36]} 10. Qh5 {[%clk 0:02:50]}  h6 {[%clk 0:02:03]} 11. Nxf7 {[%clk 0:02:49]}  Rxf7 {[%clk 0:02:01]} 12. Bxf7+ {[%clk 0:02:46]}  Kf8 {[%clk 0:01:55]} 13. Bb3 {[%clk 0:02:40]}  Be6 {[%clk 0:01:34]} 14. Bxe6 {[%clk 0:02:33]}  Nxe6 {[%clk 0:01:33]} 15. Be3 {[%clk 0:02:27]}  b5 {[%clk 0:01:30]} 16. O-O {[%clk 0:02:21]}  Nf4 {[%clk 0:01:22]} 17. Bxf4 {[%clk 0:02:21]}  exf4 {[%clk 0:01:22]} 18. c3 {[%clk 0:02:20]}  b4 {[%clk 0:01:20]} 19. Qf5 {[%clk 0:02:07]}  bxc3 {[%clk 0:01:13]} 20. bxc3 {[%clk 0:02:08]}  Kg8 {[%clk 0:01:13]} 21. d4 {[%clk 0:02:07]}  cxd4 {[%clk 0:00:43]} 22. cxd4 {[%clk 0:02:08]}  Bxd4 {[%clk 0:00:42]} 23. Qd5+ {[%clk 0:02:08]} 1-0


[Site "https://www.chess.com"]

[Event "Titled Tuesday Blitz June 28 Late 2022"]
[White "Nikologorsky, Matfei"]
[Black "Hamitevici, Vladimir"]
[WhiteFideId "24102474"]
[BlackFideId "13902393"]
[WhiteElo "2231"]
[BlackElo "2359"]
[Result "1/2-1/2"]
[Round "01"]
[TimeControl "180+1"]
[Date "2022.06.29"]
[WhiteClock "0:00:18"]
[BlackClock "0:00:17"]

1. c4 {[%clk 0:02:59]}  f5 {[%clk 0:02:55]} 2. Nc3 {[%clk 0:02:57]}  Nf6 {[%clk 0:02:55]} 3. g3 {[%clk 0:02:56]}  e5 {[%clk 0:02:51]} 4. Bg2 {[%clk 0:02:56]}  Bc5 {[%clk 0:02:51]} 5. Rb1 {[%clk 0:02:51]}  a5 {[%clk 0:02:48]} 6. a3 {[%clk 0:02:48]}  Nc6 {[%clk 0:02:46]} 7. e3 {[%clk 0:02:48]}  e4 {[%clk 0:02:35]} 8. d4 {[%clk 0:02:32]}  exd3 {[%clk 0:02:21]} 9. Qxd3 {[%clk 0:02:30]}  O-O {[%clk 0:02:16]} 10. Nf3 {[%clk 0:02:27]}  d6 {[%clk 0:02:11]} 11. O-O {[%clk 0:02:23]}  a4 {[%clk 0:01:58]} 12. Qc2 {[%clk 0:02:12]}  f4 {[%clk 0:01:39]} 13. gxf4 {[%clk 0:02:00]}  Ng4 {[%clk 0:01:39]} 14. Bd2 {[%clk 0:01:27]}  Bf5 {[%clk 0:01:25]} 15. e4 {[%clk 0:01:27]}  Bd7 {[%clk 0:01:19]} 16. Qd3 {[%clk 0:01:08]}  Ne7 {[%clk 0:00:51]} 17. Nd5 {[%clk 0:00:53]}  Ng6 {[%clk 0:00:43]} 18. f5 {[%clk 0:00:35]}  N6e5 {[%clk 0:00:39]} 19. Nxe5 {[%clk 0:00:34]}  Nxe5 {[%clk 0:00:40]} 20. Qe2 {[%clk 0:00:34]}  c6 {[%clk 0:00:34]} 21. Nf4 {[%clk 0:00:30]}  Qh4 {[%clk 0:00:34]} 22. Be3 {[%clk 0:00:28]}  Rae8 {[%clk 0:00:29]} 23. Qh5 {[%clk 0:00:19]}  Qxh5 {[%clk 0:00:25]} 24. Nxh5 {[%clk 0:00:20]}  Bxe3 {[%clk 0:00:24]} 25. fxe3 {[%clk 0:00:21]}  Nxc4 {[%clk 0:00:24]} 26. Rfe1 {[%clk 0:00:20]}  Nd2 {[%clk 0:00:25]} 27. Rbd1 {[%clk 0:00:18]}  Nxe4 {[%clk 0:00:25]} 28. Bxe4 {[%clk 0:00:19]}  Rxe4 {[%clk 0:00:26]} 29. Rxd6 {[%clk 0:00:19]}  Bxf5 {[%clk 0:00:26]} 30. Ng3 {[%clk 0:00:20]}  Rg4 {[%clk 0:00:25]} 31. e4 {[%clk 0:00:20]}  Bg6 {[%clk 0:00:25]} 32. e5 {[%clk 0:00:19]}  Re8 {[%clk 0:00:24]} 33. e6 {[%clk 0:00:20]}  Rf4 {[%clk 0:00:18]} 34. Rd7 {[%clk 0:00:20]}  b5 {[%clk 0:00:19]} 35. e7 {[%clk 0:00:19]}  Kf7 {[%clk 0:00:18]} 36. Rc7 {[%clk 0:00:18]}  Rf6 {[%clk 0:00:16]} 37. Kg2 {[%clk 0:00:18]}  Re6 {[%clk 0:00:17]} 38. Rf1+ {[%clk 0:00:18]}  Kg8 {[%clk 0:00:17]} 39. h4 {[%clk 0:00:15]}  h5 {[%clk 0:00:17]} 40. Nf5 {[%clk 0:00:14]}  Bxf5 {[%clk 0:00:16]} 41. Rxf5 {[%clk 0:00:15]}  g6 {[%clk 0:00:16]} 42. Rc5 {[%clk 0:00:14]}  R8xe7 {[%clk 0:00:15]} 43. R7xc6 {[%clk 0:00:13]}  Rxc6 {[%clk 0:00:14]} 44. Rxc6 {[%clk 0:00:14]}  Kg7 {[%clk 0:00:15]} 45. Kf3 {[%clk 0:00:14]}  Re5 {[%clk 0:00:14]} 46. Rb6 {[%clk 0:00:14]}  Rf5+ {[%clk 0:00:14]} 47. Ke4 {[%clk 0:00:13]}  Rc5 {[%clk 0:00:14]} 48. Kf3 {[%clk 0:00:13]}  Kh6 {[%clk 0:00:14]} 49. Kg3 {[%clk 0:00:13]}  Kg7 {[%clk 0:00:14]} 50. Kf3 {[%clk 0:00:14]}  Kf7 {[%clk 0:00:14]} 51. Kg3 {[%clk 0:00:14]}  Rf5 {[%clk 0:00:14]} 52. Kh3 {[%clk 0:00:13]}  g5 {[%clk 0:00:12]} 53. hxg5 {[%clk 0:00:12]}  Rxg5 {[%clk 0:00:13]} 54. Kh4 {[%clk 0:00:13]}  Rf5 {[%clk 0:00:13]} 55. Kh3 {[%clk 0:00:11]}  Ke7 {[%clk 0:00:14]} 56. Kh4 {[%clk 0:00:11]}  Kd7 {[%clk 0:00:15]} 57. Rh6 {[%clk 0:00:11]}  Kc7 {[%clk 0:00:15]} 58. Rxh5 {[%clk 0:00:11]}  Rxh5+ {[%clk 0:00:15]} 59. Kxh5 {[%clk 0:00:12]}  Kd6 {[%clk 0:00:15]} 60. Kg4 {[%clk 0:00:13]}  Ke5 {[%clk 0:00:15]} 61. Kf3 {[%clk 0:00:14]}  Kd4 {[%clk 0:00:16]} 62. Ke2 {[%clk 0:00:14]}  Kc4 {[%clk 0:00:16]} 63. Kd2 {[%clk 0:00:15]}  Kb3 {[%clk 0:00:16]} 64. Kc1 {[%clk 0:00:16]}  Ka2 {[%clk 0:00:16]} 65. Kc2 {[%clk 0:00:16]}  Ka1 {[%clk 0:00:16]} 66. Kc1 {[%clk 0:00:16]}  Ka2 {[%clk 0:00:17]} 67. Kc2 {[%clk 0:00:17]}  Ka1 {[%clk 0:00:17]} 68. Kc1 {[%clk 0:00:18]}  Ka2 {[%clk 0:00:17]} 1/2-1/2


[Site "https://www.chess.com"]

[Event "Titled Tuesday Blitz June 28 Late 2022"]
[White "Nilsson, Joakim"]
[Black "Acosta, Pablo Ismael"]
[WhiteFideId "1723383"]
[BlackFideId "124311"]
[WhiteElo "2210"]
[BlackElo "2313"]
[Result "0-1"]
[Round "01"]
[TimeControl "180+1"]
[Date "2022.06.29"]
[WhiteClock "0:01:02"]
[BlackClock "0:00:44"]

1. d4 {[%clk 0:02:59]}  Nf6 {[%clk 0:02:57]} 2. Nc3 {[%clk 0:02:59]}  d5 {[%clk 0:02:57]} 3. Bf4 {[%clk 0:02:58]}  c6 {[%clk 0:02:57]} 4. e3 {[%clk 0:02:58]}  g6 {[%clk 0:02:50]} 5. h4 {[%clk 0:02:57]}  Bg7 {[%clk 0:02:50]} 6. Nf3 {[%clk 0:02:52]}  Bg4 {[%clk 0:02:46]} 7. Be2 {[%clk 0:02:52]}  Nbd7 {[%clk 0:02:45]} 8. Ne5 {[%clk 0:02:52]}  Bxe2 {[%clk 0:02:43]} 9. Qxe2 {[%clk 0:02:53]}  Qb6 {[%clk 0:02:43]} 10. O-O-O {[%clk 0:02:51]}  h5 {[%clk 0:02:35]} 11. f3 {[%clk 0:02:51]}  Nxe5 {[%clk 0:02:32]} 12. Bxe5 {[%clk 0:02:51]}  O-O-O {[%clk 0:02:32]} 13. Kb1 {[%clk 0:02:48]}  Bh6 {[%clk 0:02:29]} 14. g4 {[%clk 0:02:46]}  hxg4 {[%clk 0:02:24]} 15. fxg4 {[%clk 0:02:46]}  Bg7 {[%clk 0:02:24]} 16. e4 {[%clk 0:02:42]}  Nxe4 {[%clk 0:02:17]} 17. Nxe4 {[%clk 0:02:39]}  Bxe5 {[%clk 0:02:17]} 18. Ng5 {[%clk 0:02:37]}  Bxd4 {[%clk 0:02:11]} 19. c3 {[%clk 0:02:31]}  Bxc3 {[%clk 0:02:06]} 20. Nxf7 {[%clk 0:02:31]}  Rhf8 {[%clk 0:01:56]} 21. Nxd8 {[%clk 0:02:30]}  Rf2 {[%clk 0:01:54]} 22. Qxf2 {[%clk 0:02:14]}  Qxf2 {[%clk 0:01:53]} 23. bxc3 {[%clk 0:02:15]}  Qb6+ {[%clk 0:01:43]} 24. Ka1 {[%clk 0:02:15]}  Qe3 {[%clk 0:01:40]} 25. Rc1 {[%clk 0:02:14]}  Kxd8 {[%clk 0:01:37]} 26. h5 {[%clk 0:02:14]}  gxh5 {[%clk 0:01:37]} 27. gxh5 {[%clk 0:02:14]}  Qh6 {[%clk 0:01:38]} 28. Kb2 {[%clk 0:02:12]}  c5 {[%clk 0:01:37]} 29. Rcd1 {[%clk 0:02:11]}  e6 {[%clk 0:01:37]} 30. Rh2 {[%clk 0:02:09]}  b5 {[%clk 0:01:32]} 31. a3 {[%clk 0:02:04]}  a5 {[%clk 0:01:31]} 32. Rg1 {[%clk 0:02:02]}  b4 {[%clk 0:01:20]} 33. axb4 {[%clk 0:02:00]}  axb4 {[%clk 0:01:20]} 34. cxb4 {[%clk 0:01:57]}  c4 {[%clk 0:01:20]} 35. Rg3 {[%clk 0:01:43]}  Kd7 {[%clk 0:01:11]} 36. b5 {[%clk 0:01:42]}  Kd6 {[%clk 0:01:08]} 37. Ka3 {[%clk 0:01:35]}  Kc5 {[%clk 0:01:04]} 38. Rb2 {[%clk 0:01:30]}  Qc1 {[%clk 0:01:00]} 39. Ka2 {[%clk 0:01:14]}  c3 {[%clk 0:00:53]} 40. Rb3 {[%clk 0:01:12]}  d4 {[%clk 0:00:49]} 41. b6 {[%clk 0:01:09]}  Kc4 {[%clk 0:00:46]} 42. Rb1 {[%clk 0:01:03]}  Qc2+ {[%clk 0:00:45]} 43. Ka3 {[%clk 0:01:02]}  Qxb1 {[%clk 0:00:44]} 0-1


[Site "https://www.chess.com"]

[Event "Titled Tuesday Blitz June 28 Late 2022"]
[White "Oparin, Grigoriy"]
[Black "Ladan, Nicholas"]
[WhiteFideId "24125890"]
[BlackFideId "30918855"]
[WhiteElo "2639"]
[BlackElo "2167"]
[Result "1-0"]
[Round "01"]
[TimeControl "180+1"]
[Date "2022.06.28"]
[WhiteClock "0:02:26"]
[BlackClock "0:01:21"]

1. d4 {[%clk 0:03:00]}  d5 {[%clk 0:02:58]} 2. c4 {[%clk 0:03:01]}  e6 {[%clk 0:02:59]} 3. Nf3 {[%clk 0:03:01]}  Nf6 {[%clk 0:02:59]} 4. Nc3 {[%clk 0:03:01]}  Bb4 {[%clk 0:03:00]} 5. e3 {[%clk 0:02:59]}  O-O {[%clk 0:02:58]} 6. Bd2 {[%clk 0:02:59]}  Re8 {[%clk 0:02:51]} 7. a3 {[%clk 0:02:59]}  Bf8 {[%clk 0:02:50]} 8. Qc2 {[%clk 0:02:59]}  Nc6 {[%clk 0:02:42]} 9. cxd5 {[%clk 0:02:53]}  Nxd5 {[%clk 0:02:33]} 10. Bd3 {[%clk 0:02:52]}  g6 {[%clk 0:02:20]} 11. O-O {[%clk 0:02:52]}  e5 {[%clk 0:02:15]} 12. Nxd5 {[%clk 0:02:44]}  Qxd5 {[%clk 0:02:16]} 13. e4 {[%clk 0:02:44]}  Qd8 {[%clk 0:02:09]} 14. d5 {[%clk 0:02:44]}  Nd4 {[%clk 0:02:06]} 15. Nxd4 {[%clk 0:02:43]}  exd4 {[%clk 0:02:07]} 16. Rac1 {[%clk 0:02:43]}  Bd6 {[%clk 0:01:49]} 17. f4 {[%clk 0:02:44]}  c5 {[%clk 0:01:28]} 18. dxc6 {[%clk 0:02:42]}  bxc6 {[%clk 0:01:28]} 19. Qxc6 {[%clk 0:02:36]}  Rb8 {[%clk 0:01:27]} 20. e5 {[%clk 0:02:26]}  Bb7 {[%clk 0:01:21]} 21. Qxd6 {[%clk 0:02:26]} 1-0


[Site "https://www.chess.com"]